[Event "*** Titled Tuesday Blitz"]
[Site "Chess.com"]
[Date "2020.04.28"]
[Round "8"]
[White "MRBigtimer"]
[Black "Leonid_Starozhilov"]
[Result "1/2-1/2"]
[WhiteElo "2341"]
[BlackElo "2605"]
[TimeControl "180+1"]
[EndTime "11:35:44 PDT"]
[Termination "Game drawn by stalemate"]

1. e4 {[%clk 0:03:00.9]} 1... d6 {[%clk 0:02:58.7]} 2. d4 {[%clk 0:03:00.4]}
2... Nf6 {[%clk 0:02:58.5]} 3. Nc3 {[%clk 0:03:00.9]} 3... Nbd7 {[%clk
0:02:57.7]} 4. Be3 {[%clk 0:02:59.7]} 4... e5 {[%clk 0:02:58.3]} 5. Be2 {[%clk
0:02:56.8]} 5... Be7 {[%clk 0:02:55.9]} 6. Qd2 {[%clk 0:02:56.5]} 6... O-O
{[%clk 0:02:52]} 7. O-O-O {[%clk 0:02:56]} 7... c6 {[%clk 0:02:51.9]} 8. f4
{[%clk 0:02:55.9]} 8... b5 {[%clk 0:02:43.5]} 9. dxe5 {[%clk 0:02:55.9]} 9...
dxe5 {[%clk 0:02:43.1]} 10. fxe5 {[%clk 0:02:56.2]} 10... Nxe5 {[%clk 0:02:41]}
11. Qxd8 {[%clk 0:02:56]} 11... Rxd8 {[%clk 0:02:23.6]} 12. Rxd8+ {[%clk
0:02:54.8]} 12... Bxd8 {[%clk 0:02:24.5]} 13. a3 {[%clk 0:02:52.2]} 13... Bc7
{[%clk 0:02:03]} 14. Nf3 {[%clk 0:02:50.2]} 14... a5 {[%clk 0:02:03.4]} 15. Bf4
{[%clk 0:02:36]} 15... Nd3+ {[%clk 0:01:52.8]} 16. Bxd3 {[%clk 0:02:34.5]} 16...
Bxf4+ {[%clk 0:01:53]} 17. Kb1 {[%clk 0:02:34.9]} 17... Be6 {[%clk 0:01:48.3]}
18. Ne2 {[%clk 0:02:33.7]} 18... Bc7 {[%clk 0:01:46.1]} 19. Ned4 {[%clk
0:02:33.4]} 19... Bd7 {[%clk 0:01:41]} 20. Re1 {[%clk 0:02:32.5]} 20... Re8
{[%clk 0:01:31.2]} 21. h3 {[%clk 0:02:31.5]} 21... g6 {[%clk 0:00:50.1]} 22. b4
{[%clk 0:02:29.3]} 22... axb4 {[%clk 0:00:43.5]} 23. axb4 {[%clk 0:02:28.6]}
23... Be5 {[%clk 0:00:43.7]} 24. Nxe5 {[%clk 0:02:19.1]} 24... Rxe5 {[%clk
0:00:43.6]} 25. Re2 {[%clk 0:02:07.8]} 25... Re8 {[%clk 0:00:33.6]} 26. Kb2
{[%clk 0:02:02.8]} 26... Kg7 {[%clk 0:00:31]} 27. g4 {[%clk 0:01:50.4]} 27... h6
{[%clk 0:00:29]} 28. c3 {[%clk 0:01:48.8]} 28... Nh7 {[%clk 0:00:24.9]} 29. Nf3
{[%clk 0:01:37.8]} 29... Ng5 {[%clk 0:00:21.6]} 30. Nxg5 {[%clk 0:01:33.2]}
30... hxg5 {[%clk 0:00:22.5]} 31. c4 {[%clk 0:01:33.5]} 31... bxc4 {[%clk
0:00:21.1]} 32. Bxc4 {[%clk 0:01:33.6]} 32... f5 {[%clk 0:00:20]} 33. exf5
{[%clk 0:01:30.2]} 33... Rxe2+ {[%clk 0:00:19.2]} 34. Bxe2 {[%clk 0:01:30]}
34... gxf5 {[%clk 0:00:20.1]} 35. gxf5 {[%clk 0:01:30.2]} 35... Bxf5 {[%clk
0:00:20.9]} 36. Bg4 {[%clk 0:01:28.8]} 36... Be4 {[%clk 0:00:12.8]} 37. Kc3
{[%clk 0:01:26.6]} 37... Kf6 {[%clk 0:00:11.6]} 38. Kd4 {[%clk 0:01:27]} 38...
Bd5 {[%clk 0:00:09.6]} 39. b5 {[%clk 0:01:26.6]} 39... cxb5 {[%clk 0:00:08.3]}
40. Kxd5 {[%clk 0:01:26.6]} 40... b4 {[%clk 0:00:07.9]} 41. Kc4 {[%clk
0:01:26.5]} 41... b3 {[%clk 0:00:08.4]} 42. Kxb3 {[%clk 0:01:26.5]} 42... Kg7
{[%clk 0:00:09.3]} 43. Kc2 {[%clk 0:01:26.7]} 43... Kh8 {[%clk 0:00:10.2]} 44.
Kd3 {[%clk 0:01:27.3]} 44... Kg7 {[%clk 0:00:11.1]} 45. Ke4 {[%clk 0:01:28]}
45... Kh8 {[%clk 0:00:12]} 46. Kf5 {[%clk 0:01:28.1]} 46... Kg7 {[%clk
0:00:12.9]} 47. Ke6 {[%clk 0:01:27.2]} 47... Kh8 {[%clk 0:00:12.5]} 48. Kf6
{[%clk 0:01:27.7]} 48... Kh7 {[%clk 0:00:12.3]} 49. Bf5+ {[%clk 0:01:26.6]}
49... Kh8 {[%clk 0:00:11.4]} 50. Kg6 {[%clk 0:01:26.3]} 50... Kg8 {[%clk
0:00:11.4]} 51. Kh6 {[%clk 0:01:25.6]} 51... Kh8 {[%clk 0:00:07.8]} 52. Bg4
{[%clk 0:01:16.7]} 52... Kg8 {[%clk 0:00:07.9]} 53. Bh5 {[%clk 0:01:15.5]} 53...
Kh8 {[%clk 0:00:08.3]} 54. Kg6 {[%clk 0:01:12.8]} 54... Kg8 {[%clk 0:00:08.6]}
55. Kf6 {[%clk 0:01:12.5]} 55... Kh8 {[%clk 0:00:09.3]} 56. Bf7 {[%clk
0:01:11.4]} 56... Kh7 {[%clk 0:00:09.2]} 57. Ke7 {[%clk 0:01:11.1]} 57... Kg7
{[%clk 0:00:08.1]} 58. Ke8 {[%clk 0:01:10.5]} 58... Kh8 {[%clk 0:00:06.5]} 59.
Kf8 {[%clk 0:01:10.4]} 59... Kh7 {[%clk 0:00:06.3]} 60. Be8 {[%clk 0:01:09.2]}
60... Kh8 {[%clk 0:00:05.7]} 61. Bg6 {[%clk 0:01:09]} 61... g4 {[%clk
0:00:04.8]} 62. hxg4 {[%clk 0:01:08.2]} 1/2-1/2

[Event "*** Titled Tuesday Blitz"]
[Site "Chess.com"]
[Date "2020.04.28"]
[Round "8"]
[White "CalinGheorghiu"]
[Black "Unknown_IM"]
[Result "0-1"]
[WhiteElo "2341"]
[BlackElo "2524"]
[TimeControl "180+1"]
[EndTime "11:35:44 PDT"]
[Termination "Unknown_IM won by checkmate"]

1. d4 {[%clk 0:02:52.5]} 1... Nf6 {[%clk 0:02:58.8]} 2. c4 {[%clk 0:02:52.2]}
2... c5 {[%clk 0:02:57.3]} 3. d5 {[%clk 0:02:51.6]} 3... e6 {[%clk 0:02:57.7]}
4. Nc3 {[%clk 0:02:50.9]} 4... exd5 {[%clk 0:02:58.3]} 5. cxd5 {[%clk
0:02:50.8]} 5... d6 {[%clk 0:02:59.2]} 6. e4 {[%clk 0:02:51]} 6... g6 {[%clk
0:02:58.7]} 7. Nge2 {[%clk 0:02:51.5]} 7... Bg7 {[%clk 0:02:57.1]} 8. Ng3 {[%clk
0:02:52]} 8... a6 {[%clk 0:02:52.2]} 9. a4 {[%clk 0:02:51.1]} 9... O-O {[%clk
0:02:39.4]} 10. Be2 {[%clk 0:02:50.1]} 10... Nbd7 {[%clk 0:02:37.4]} 11. O-O
{[%clk 0:02:48.8]} 11... Re8 {[%clk 0:02:37.9]} 12. f4 {[%clk 0:02:36]} 12... h5
{[%clk 0:02:35.8]} 13. e5 {[%clk 0:02:33.9]} 13... dxe5 {[%clk 0:02:29.3]} 14.
f5 {[%clk 0:02:33.7]} 14... e4 {[%clk 0:02:27.7]} 15. Bg5 {[%clk 0:02:14.4]}
15... Qb6 {[%clk 0:02:27.3]} 16. fxg6 {[%clk 0:02:00.5]} 16... fxg6 {[%clk
0:02:26.1]} 17. d6 {[%clk 0:01:58.9]} 17... Re5 {[%clk 0:02:04.2]} 18. Bc4+
{[%clk 0:01:46.7]} 18... Kh7 {[%clk 0:02:02]} 19. Bxf6 {[%clk 0:01:29]} 19...
Nxf6 {[%clk 0:02:02.9]} 20. Rxf6 {[%clk 0:01:27.9]} 20... Bxf6 {[%clk
0:01:59.6]} 21. d7 {[%clk 0:01:17.4]} 21... Qxb2 {[%clk 0:01:00.7]} 22. Rc1
{[%clk 0:00:37.3]} 22... Bxd7 {[%clk 0:00:58.2]} 23. Qxd7+ {[%clk 0:00:36.4]}
23... Re7 {[%clk 0:00:58.8]} 24. Qd1 {[%clk 0:00:30.5]} 24... Bxc3 {[%clk
0:00:53.1]} 25. Nxh5 {[%clk 0:00:21.8]} 25... Rd8 {[%clk 0:00:18.7]} 26. Qf1
{[%clk 0:00:19.7]} 26... Bd4+ {[%clk 0:00:16]} 27. Kh1 {[%clk 0:00:19.1]} 27...
Qf2 {[%clk 0:00:15.6]} 28. Qd1 {[%clk 0:00:12.7]} 28... e3 {[%clk 0:00:14.2]}
29. Qg4 {[%clk 0:00:07.2]} 29... Rf8 {[%clk 0:00:13.4]} 30. Bd3 {[%clk
0:00:06.1]} 30... Qf7 {[%clk 0:00:07.3]} 31. Nf4 {[%clk 0:00:02.6]} 31... Kh6
{[%clk 0:00:05.9]} 32. Qh3+ {[%clk 0:00:01.7]} 32... Kg7 {[%clk 0:00:05.4]} 33.
Nxg6 {[%clk 0:00:02]} 33... e2 {[%clk 0:00:05.7]} 34. Nxe7 {[%clk 0:00:01.7]}
34... Qf1+ {[%clk 0:00:06]} 35. Rxf1 {[%clk 0:00:01.4]} 35... Rxf1# {[%clk
0:00:06.9]} 0-1

[Event "*** Titled Tuesday Blitz"]
[Site "Chess.com"]
[Date "2020.04.28"]
[Round "8"]
[White "frankshar"]
[Black "Sweafty"]
[Result "1-0"]
[WhiteElo "2309"]
[BlackElo "2450"]
[TimeControl "180+1"]
[EndTime "11:35:44 PDT"]
[Termination "frankshar won by resignation"]

1. d4 {[%clk 0:03:00.9]} 1... d6 {[%clk 0:02:58]} 2. e4 {[%clk 0:02:59.2]} 2...
Nf6 {[%clk 0:02:58]} 3. Nc3 {[%clk 0:02:58.4]} 3... g6 {[%clk 0:02:58.6]} 4. f4
{[%clk 0:02:56.3]} 4... Bg7 {[%clk 0:02:58.1]} 5. Nf3 {[%clk 0:02:53.4]} 5... c5
{[%clk 0:02:58.4]} 6. dxc5 {[%clk 0:02:47.9]} 6... Qa5 {[%clk 0:02:58.1]} 7. Bd3
{[%clk 0:02:46.1]} 7... Qxc5 {[%clk 0:02:56.8]} 8. Qe2 {[%clk 0:02:44.3]} 8...
O-O {[%clk 0:02:56.9]} 9. Be3 {[%clk 0:02:42.6]} 9... Qa5 {[%clk 0:02:57.2]} 10.
O-O {[%clk 0:02:41.1]} 10... Bg4 {[%clk 0:02:57.4]} 11. h3 {[%clk 0:02:37.3]}
11... Bxf3 {[%clk 0:02:57.3]} 12. Qxf3 {[%clk 0:02:37.9]} 12... Nc6 {[%clk
0:02:56.8]} 13. a3 {[%clk 0:02:25.4]} 13... Nd7 {[%clk 0:02:51.5]} 14. Bd2
{[%clk 0:02:03.7]} 14... Nd4 {[%clk 0:02:29.5]} 15. Qf2 {[%clk 0:01:56.8]} 15...
Qd8 {[%clk 0:02:29.7]} 16. Kh1 {[%clk 0:01:24.6]} 16... Nc5 {[%clk 0:02:26.5]}
17. Be3 {[%clk 0:01:22.3]} 17... Nxd3 {[%clk 0:02:23.3]} 18. cxd3 {[%clk
0:01:22.8]} 18... Nb3 {[%clk 0:02:12.9]} 19. Rad1 {[%clk 0:01:18.3]} 19... b6
{[%clk 0:02:10.1]} 20. f5 {[%clk 0:01:11.6]} 20... Rc8 {[%clk 0:02:06.1]} 21.
Nd5 {[%clk 0:01:04.7]} 21... Nc5 {[%clk 0:01:13.5]} 22. Bg5 {[%clk 0:00:49.1]}
22... f6 {[%clk 0:00:48.1]} 23. Be3 {[%clk 0:00:48]} 23... e6 {[%clk 0:00:42.8]}
24. Bxc5 {[%clk 0:00:27.8]} 24... exd5 {[%clk 0:00:41]} 25. Bd4 {[%clk
0:00:27.4]} 25... Qd7 {[%clk 0:00:34.1]} 26. Qg3 {[%clk 0:00:24.6]} 26... g5
{[%clk 0:00:20.8]} 27. exd5 {[%clk 0:00:20.4]} 27... Qb5 {[%clk 0:00:21]} 28.
Qf3 {[%clk 0:00:19.2]} 28... Rc2 {[%clk 0:00:19.3]} 29. Rfe1 {[%clk 0:00:17.1]}
29... Rfc8 {[%clk 0:00:19.2]} 30. Re7 {[%clk 0:00:15.5]} 30... Rc1 {[%clk
0:00:19.3]} 31. Rxc1 {[%clk 0:00:14.3]} 31... Rxc1+ {[%clk 0:00:20.2]} 32. Kh2
{[%clk 0:00:14.8]} 32... Qb3 {[%clk 0:00:15.1]} 33. Qe2 {[%clk 0:00:10.2]} 33...
Qxd5 {[%clk 0:00:13.8]} 34. Qe6+ {[%clk 0:00:09.3]} 34... Qxe6 {[%clk
0:00:13.8]} 35. fxe6 {[%clk 0:00:10.2]} 35... Re1 {[%clk 0:00:13.2]} 36. Re8+
{[%clk 0:00:09.3]} 36... Bf8 {[%clk 0:00:13.4]} 37. Bxf6 {[%clk 0:00:09.7]}
37... g4 {[%clk 0:00:07.7]} 38. e7 {[%clk 0:00:09.8]} 1-0

[Event "*** Titled Tuesday Blitz"]
[Site "Chess.com"]
[Date "2020.04.28"]
[Round "8"]
[White "ahachess"]
[Black "Joseph_Truelson"]
[Result "1-0"]
[WhiteElo "2368"]
[BlackElo "2208"]
[TimeControl "180+1"]
[EndTime "11:35:44 PDT"]
[Termination "ahachess won on time"]

1. d4 {[%clk 0:03:00.6]} 1... d5 {[%clk 0:02:55.7]} 2. c4 {[%clk 0:02:59.6]}
2... e6 {[%clk 0:02:54.3]} 3. Nf3 {[%clk 0:02:57.4]} 3... Nf6 {[%clk 0:02:53.1]}
4. Qc2 {[%clk 0:02:57]} 4... Bb4+ {[%clk 0:02:45.5]} 5. Bd2 {[%clk 0:02:36.6]}
5... Be7 {[%clk 0:02:35.4]} 6. Bg5 {[%clk 0:02:33.9]} 6... Nbd7 {[%clk
0:02:26.7]} 7. e3 {[%clk 0:02:33.5]} 7... O-O {[%clk 0:02:22.5]} 8. Nc3 {[%clk
0:02:33]} 8... c5 {[%clk 0:02:12.3]} 9. dxc5 {[%clk 0:02:30.5]} 9... Nxc5 {[%clk
0:02:04.8]} 10. cxd5 {[%clk 0:02:07.9]} 10... Nxd5 {[%clk 0:01:52]} 11. Nxd5
{[%clk 0:02:00.8]} 11... exd5 {[%clk 0:01:37.2]} 12. Bxe7 {[%clk 0:01:44.9]}
12... Qxe7 {[%clk 0:01:38.1]} 13. Be2 {[%clk 0:01:33.1]} 13... Be6 {[%clk
0:01:11.8]} 14. O-O {[%clk 0:01:11]} 14... Rac8 {[%clk 0:01:05.8]} 15. Nd4
{[%clk 0:01:05.4]} 15... Ne4 {[%clk 0:01:01.8]} 16. Qa4 {[%clk 0:01:04.8]} 16...
a6 {[%clk 0:00:41.7]} 17. Rfd1 {[%clk 0:01:01.6]} 17... Qg5 {[%clk 0:00:27.4]}
18. Bf3 {[%clk 0:00:52.7]} 18... Bg4 {[%clk 0:00:19.9]} 19. Rac1 {[%clk
0:00:44.1]} 19... Bxf3 {[%clk 0:00:19.3]} 20. Nxf3 {[%clk 0:00:44]} 20... Qf6
{[%clk 0:00:19.5]} 21. Rxc8 {[%clk 0:00:38.3]} 21... Rxc8 {[%clk 0:00:20.4]} 22.
Qd7 {[%clk 0:00:35.9]} 22... Rd8 {[%clk 0:00:18.6]} 23. Qxb7 {[%clk 0:00:34.7]}
23... Qd6 {[%clk 0:00:09]} 24. h3 {[%clk 0:00:30.2]} 24... h6 {[%clk 0:00:08.8]}
25. b3 {[%clk 0:00:27.8]} 25... Rb8 {[%clk 0:00:08.8]} 26. Qxd5 {[%clk
0:00:27.3]} 26... Qe7 {[%clk 0:00:07.3]} 27. Rc1 {[%clk 0:00:23]} 27... Rd8
{[%clk 0:00:04.8]} 28. Qc6 {[%clk 0:00:18.1]} 28... Qb4 {[%clk 0:00:04.6]} 29.
Qxa6 {[%clk 0:00:16.7]} 29... Nd2 {[%clk 0:00:04.2]} 30. Qe2 {[%clk 0:00:13]}
30... Nxf3+ {[%clk 0:00:02.1]} 31. Qxf3 {[%clk 0:00:13.2]} 31... Rd2 {[%clk
0:00:02.2]} 32. Rc7 {[%clk 0:00:11.3]} 1-0

[Event "*** Titled Tuesday Blitz"]
[Site "Chess.com"]
[Date "2020.04.28"]
[Round "8"]
[White "grzechu96"]
[Black "Yaacovn"]
[Result "1-0"]
[WhiteElo "2616"]
[BlackElo "2738"]
[TimeControl "180+1"]
[EndTime "11:35:45 PDT"]
[Termination "grzechu96 won by resignation"]

1. e4 {[%clk 0:03:00.9]} 1... c6 {[%clk 0:03:00.3]} 2. d4 {[%clk 0:03:00.2]}
2... d5 {[%clk 0:03:01.2]} 3. Nc3 {[%clk 0:03:00.9]} 3... dxe4 {[%clk
0:03:00.4]} 4. Nxe4 {[%clk 0:03:01.8]} 4... Nf6 {[%clk 0:03:01.2]} 5. Nxf6+
{[%clk 0:03:01.6]} 5... gxf6 {[%clk 0:03:02.1]} 6. c3 {[%clk 0:02:59.1]} 6...
Qd5 {[%clk 0:03:02]} 7. Qb3 {[%clk 0:02:54.2]} 7... Nd7 {[%clk 0:03:01.9]} 8.
Nf3 {[%clk 0:02:51.5]} 8... Nb6 {[%clk 0:03:02]} 9. Qxd5 {[%clk 0:02:35.9]} 9...
cxd5 {[%clk 0:03:00]} 10. g3 {[%clk 0:02:33.1]} 10... Bd7 {[%clk 0:02:59.5]} 11.
Bg2 {[%clk 0:02:31.9]} 11... Bb5 {[%clk 0:02:59.6]} 12. b3 {[%clk 0:02:29.5]}
12... Rc8 {[%clk 0:02:55.5]} 13. a4 {[%clk 0:02:27.5]} 13... Bd3 {[%clk
0:02:52.9]} 14. Bd2 {[%clk 0:02:24.9]} 14... e6 {[%clk 0:02:50.1]} 15. Bf1
{[%clk 0:02:21.1]} 15... Bc2 {[%clk 0:02:40.3]} 16. a5 {[%clk 0:02:16.2]} 16...
Nd7 {[%clk 0:02:38]} 17. a6 {[%clk 0:02:04.9]} 17... b6 {[%clk 0:02:37.5]} 18.
b4 {[%clk 0:02:04.8]} 18... Bd6 {[%clk 0:02:32.7]} 19. Be2 {[%clk 0:02:00.2]}
19... Bb3 {[%clk 0:02:24.3]} 20. O-O {[%clk 0:01:59.3]} 20... Bc4 {[%clk
0:02:24.4]} 21. Bxc4 {[%clk 0:01:59.1]} 21... Rxc4 {[%clk 0:02:25.3]} 22. Ne1
{[%clk 0:01:55.9]} 22... h5 {[%clk 0:02:20.3]} 23. Nc2 {[%clk 0:01:53.7]} 23...
f5 {[%clk 0:02:03.9]} 24. Na3 {[%clk 0:01:54]} 24... Rc8 {[%clk 0:02:02]} 25.
Nb5 {[%clk 0:01:54.5]} 25... Bb8 {[%clk 0:02:01.9]} 26. Bf4 {[%clk 0:01:50.4]}
26... Bxf4 {[%clk 0:01:04.3]} 27. gxf4 {[%clk 0:01:51.3]} 27... Ra8 {[%clk
0:01:04.5]} 28. Nc7+ {[%clk 0:01:51.1]} 28... Ke7 {[%clk 0:01:05]} 29. Nxa8
{[%clk 0:01:51.4]} 29... Rxa8 {[%clk 0:01:05.8]} 30. Kg2 {[%clk 0:01:51.9]}
30... Rc8 {[%clk 0:01:05.5]} 31. Ra3 {[%clk 0:01:47]} 31... Nf6 {[%clk
0:01:03.1]} 32. Kf3 {[%clk 0:01:39.1]} 32... Ne4 {[%clk 0:01:02.5]} 33. Rg1
{[%clk 0:01:35.6]} 33... Kf6 {[%clk 0:00:56]} 34. Ke3 {[%clk 0:01:32.5]} 34...
Nd6 {[%clk 0:00:48]} 35. Kd3 {[%clk 0:01:31.4]} 35... Ne4 {[%clk 0:00:46.6]} 36.
f3 {[%clk 0:01:29.9]} 36... Nd6 {[%clk 0:00:40.4]} 37. Raa1 {[%clk 0:01:19.6]}
37... h4 {[%clk 0:00:29.8]} 38. Rg5 {[%clk 0:01:15.7]} 38... Nb5 {[%clk
0:00:23.8]} 39. Rc1 {[%clk 0:01:14.1]} 39... Rh8 {[%clk 0:00:22.1]} 40. h3
{[%clk 0:01:12.5]} 40... Ke7 {[%clk 0:00:20.1]} 41. c4 {[%clk 0:01:10]} 41...
dxc4+ {[%clk 0:00:19.8]} 42. Rxc4 {[%clk 0:01:09.7]} 42... Kd7 {[%clk
0:00:16.7]} 43. Rg7 {[%clk 0:01:09.5]} 43... Nd6 {[%clk 0:00:15.8]} 44. Rc1
{[%clk 0:01:07.1]} 44... Rd8 {[%clk 0:00:12.1]} 45. Rh7 {[%clk 0:01:05.5]} 45...
Rg8 {[%clk 0:00:10.3]} 46. Rxh4 {[%clk 0:01:04.7]} 46... Rg2 {[%clk 0:00:10.5]}
47. Rh8 {[%clk 0:01:02.9]} 47... Ra2 {[%clk 0:00:11]} 48. h4 {[%clk 0:01:00.2]}
48... Rxa6 {[%clk 0:00:09.9]} 49. h5 {[%clk 0:00:59.2]} 49... Ra2 {[%clk
0:00:10.1]} 50. Rh1 {[%clk 0:00:58.8]} 50... Ra3+ {[%clk 0:00:09.8]} 51. Kc2
{[%clk 0:00:58.6]} 51... Nb5 {[%clk 0:00:10]} 52. h6 {[%clk 0:00:58.2]} 52...
Nxd4+ {[%clk 0:00:10.4]} 53. Kb2 {[%clk 0:00:58.3]} 53... Rb3+ {[%clk
0:00:10.1]} 54. Ka2 {[%clk 0:00:58.9]} 54... Rxf3 {[%clk 0:00:10.1]} 55. Ra8
{[%clk 0:00:58.7]} 55... Rf2+ {[%clk 0:00:09.2]} 56. Kb1 {[%clk 0:00:58.9]}
56... Kc6 {[%clk 0:00:07]} 57. h7 {[%clk 0:00:56.7]} 57... Nb5 {[%clk
0:00:07.3]} 58. Rc8+ {[%clk 0:00:56.3]} 58... Kb7 {[%clk 0:00:07.1]} 59. h8=Q
{[%clk 0:00:55.8]} 1-0

[Event "*** Titled Tuesday Blitz"]
[Site "Chess.com"]
[Date "2020.04.28"]
[Round "8"]
[White "elisak43"]
[Black "Tashik"]
[Result "1-0"]
[WhiteElo "2415"]
[BlackElo "2530"]
[TimeControl "180+1"]
[EndTime "11:35:45 PDT"]
[Termination "elisak43 won by checkmate"]

1. e4 {[%clk 0:03:00.9]} 1... e5 {[%clk 0:02:59.1]} 2. Nf3 {[%clk 0:03:00.3]}
2... Nc6 {[%clk 0:02:59.5]} 3. Bc4 {[%clk 0:02:56.5]} 3... Bc5 {[%clk
0:02:58.6]} 4. O-O {[%clk 0:02:56.7]} 4... Nf6 {[%clk 0:02:57.8]} 5. d3 {[%clk
0:02:57]} 5... O-O {[%clk 0:02:55.4]} 6. Be3 {[%clk 0:02:55.6]} 6... d6 {[%clk
0:02:45.7]} 7. Nbd2 {[%clk 0:02:49.3]} 7... h6 {[%clk 0:02:37.4]} 8. c3 {[%clk
0:02:44.8]} 8... a5 {[%clk 0:02:35.4]} 9. a4 {[%clk 0:02:40.2]} 9... Re8 {[%clk
0:02:22.5]} 10. Qb3 {[%clk 0:02:08.1]} 10... Qe7 {[%clk 0:02:10.8]} 11. Bxc5
{[%clk 0:01:39.2]} 11... dxc5 {[%clk 0:02:10.3]} 12. Bb5 {[%clk 0:01:39.8]}
12... Bd7 {[%clk 0:02:07.3]} 13. Nc4 {[%clk 0:01:37.9]} 13... Qe6 {[%clk
0:01:11.6]} 14. Bxc6 {[%clk 0:01:26.5]} 14... Bxc6 {[%clk 0:01:10.1]} 15. Nfxe5
{[%clk 0:01:21.9]} 15... b6 {[%clk 0:00:46.6]} 16. Nxc6 {[%clk 0:01:03.7]} 16...
Qxc6 {[%clk 0:00:47.5]} 17. Ne3 {[%clk 0:01:04]} 17... Rad8 {[%clk 0:00:45.5]}
18. Rad1 {[%clk 0:01:02.7]} 18... Rd7 {[%clk 0:00:39.7]} 19. Qc4 {[%clk
0:00:56.1]} 19... Red8 {[%clk 0:00:38.2]} 20. f3 {[%clk 0:00:31.3]} 20... Qd6
{[%clk 0:00:34.4]} 21. Nf5 {[%clk 0:00:29.5]} 21... Qf4 {[%clk 0:00:31.3]} 22.
d4 {[%clk 0:00:26.2]} 22... g6 {[%clk 0:00:20.8]} 23. g3 {[%clk 0:00:18.9]}
23... Qg5 {[%clk 0:00:20.9]} 24. h4 {[%clk 0:00:18.3]} 24... Qh5 {[%clk
0:00:21]} 25. Ne3 {[%clk 0:00:12]} 25... cxd4 {[%clk 0:00:18.4]} 26. cxd4 {[%clk
0:00:12.3]} 26... g5 {[%clk 0:00:14.9]} 27. hxg5 {[%clk 0:00:11.7]} 27... Qxg5
{[%clk 0:00:15.4]} 28. Nf5 {[%clk 0:00:12.3]} 28... Nd5 {[%clk 0:00:14]} 29. Qc1
{[%clk 0:00:11.3]} 29... Qxc1 {[%clk 0:00:09.4]} 30. Rxc1 {[%clk 0:00:11.8]}
30... Nb4 {[%clk 0:00:09.5]} 31. Nxh6+ {[%clk 0:00:11.4]} 31... Kf8 {[%clk
0:00:10]} 32. Nf5 {[%clk 0:00:11.8]} 32... Nd3 {[%clk 0:00:09.1]} 33. Rc2 {[%clk
0:00:11.5]} 33... c5 {[%clk 0:00:09.5]} 34. d5 {[%clk 0:00:11.3]} 34... Nb4
{[%clk 0:00:09.3]} 35. Rh2 {[%clk 0:00:10.6]} 35... f6 {[%clk 0:00:07.9]} 36.
Kg2 {[%clk 0:00:07.7]} 36... Rf7 {[%clk 0:00:04.1]} 37. Rh8# {[%clk 0:00:06.8]}
1-0

[Event "*** Titled Tuesday Blitz"]
[Site "Chess.com"]
[Date "2020.04.28"]
[Round "8"]
[White "KingCrusher275"]
[Black "Mikedannnn"]
[Result "1-0"]
[WhiteElo "2358"]
[BlackElo "2497"]
[TimeControl "180+1"]
[EndTime "11:35:48 PDT"]
[Termination "KingCrusher275 won by resignation"]

1. d4 {[%clk 0:03:00.9]} 1... g6 {[%clk 0:02:59.6]} 2. c4 {[%clk 0:03:00.6]}
2... Bg7 {[%clk 0:02:57.9]} 3. Nc3 {[%clk 0:03:01.1]} 3... c5 {[%clk 0:02:57.6]}
4. d5 {[%clk 0:02:59.1]} 4... d6 {[%clk 0:02:57.6]} 5. e4 {[%clk 0:02:57.7]}
5... e6 {[%clk 0:02:57.9]} 6. Nf3 {[%clk 0:02:49.2]} 6... Ne7 {[%clk 0:02:56]}
7. Be2 {[%clk 0:02:46.3]} 7... O-O {[%clk 0:02:51.5]} 8. O-O {[%clk 0:02:46.1]}
8... h6 {[%clk 0:02:51.2]} 9. Bf4 {[%clk 0:02:45.3]} 9... g5 {[%clk 0:02:46.8]}
10. Be3 {[%clk 0:02:33.1]} 10... Ng6 {[%clk 0:02:46.1]} 11. dxe6 {[%clk
0:02:25.6]} 11... Bxe6 {[%clk 0:02:43.8]} 12. Qd2 {[%clk 0:02:22.7]} 12... Nc6
{[%clk 0:02:27.9]} 13. Rad1 {[%clk 0:02:16.6]} 13... g4 {[%clk 0:02:25.2]} 14.
Ne1 {[%clk 0:02:12.9]} 14... Nd4 {[%clk 0:02:25]} 15. Nd5 {[%clk 0:02:02.2]}
15... Qh4 {[%clk 0:02:08.7]} 16. g3 {[%clk 0:01:34.3]} 16... Qh3 {[%clk
0:02:08.2]} 17. Ng2 {[%clk 0:01:16.9]} 17... Bxd5 {[%clk 0:01:55.7]} 18. exd5
{[%clk 0:01:07]} 18... Nf3+ {[%clk 0:01:55.3]} 19. Bxf3 {[%clk 0:01:06.4]} 19...
gxf3 {[%clk 0:01:56.2]} 20. Ne1 {[%clk 0:01:04.5]} 20... Ne5 {[%clk 0:01:52.3]}
21. Qc2 {[%clk 0:00:51.3]} 21... Qh5 {[%clk 0:01:40.7]} 22. Bf4 {[%clk
0:00:40.8]} 22... Ng6 {[%clk 0:01:40.3]} 23. Bxd6 {[%clk 0:00:37.8]} 23... Rfe8
{[%clk 0:01:39]} 24. Qd3 {[%clk 0:00:28.5]} 24... Bd4 {[%clk 0:01:37]} 25. Nxf3
{[%clk 0:00:22.6]} 25... Ne5 {[%clk 0:01:21.7]} 26. Bxe5 {[%clk 0:00:19.3]}
26... Bxe5 {[%clk 0:01:22.6]} 27. Nxe5 {[%clk 0:00:19.8]} 27... Qxe5 {[%clk
0:01:22.7]} 28. Qd2 {[%clk 0:00:18.4]} 28... Kh7 {[%clk 0:01:20.5]} 29. Rde1
{[%clk 0:00:18.4]} 29... Qf5 {[%clk 0:01:20.3]} 30. Re3 {[%clk 0:00:17.6]} 30...
Re5 {[%clk 0:01:00.6]} 31. Rfe1 {[%clk 0:00:17]} 31... Rae8 {[%clk 0:01:01]} 32.
Rxe5 {[%clk 0:00:16.9]} 32... Rxe5 {[%clk 0:01:00.8]} 33. Rxe5 {[%clk 0:00:17]}
33... Qxe5 {[%clk 0:01:01.3]} 34. Qe3 {[%clk 0:00:17.4]} 34... Qxb2 {[%clk
0:01:01.1]} 35. Qxc5 {[%clk 0:00:17.6]} 35... Qxa2 {[%clk 0:00:58.8]} 36. d6
{[%clk 0:00:18.1]} 36... Qb1+ {[%clk 0:00:59.2]} 37. Kg2 {[%clk 0:00:18]} 37...
Qe4+ {[%clk 0:00:59.9]} 38. Kf1 {[%clk 0:00:18.3]} 38... Qb1+ {[%clk 0:00:59.9]}
39. Ke2 {[%clk 0:00:18.9]} 39... Qe4+ {[%clk 0:01:00.8]} 40. Kd2 {[%clk
0:00:19.1]} 40... Qe6 {[%clk 0:00:55.4]} 41. Qd5 {[%clk 0:00:18.6]} 41... Qf6
{[%clk 0:00:55.7]} 42. d7 {[%clk 0:00:18.6]} 42... Qxf2+ {[%clk 0:00:55.5]} 43.
Kc3 {[%clk 0:00:18.6]} 43... Qe3+ {[%clk 0:00:55.8]} 44. Kb4 {[%clk 0:00:18.9]}
44... Qe1+ {[%clk 0:00:54.4]} 45. Kc5 {[%clk 0:00:18.6]} 45... Qe7+ {[%clk
0:00:54.1]} 46. Qd6 {[%clk 0:00:18.7]} 46... Qe3+ {[%clk 0:00:54.4]} 47. Kb5
{[%clk 0:00:18.3]} 47... Qb3+ {[%clk 0:00:54.4]} 48. Kc5 {[%clk 0:00:15.6]}
48... Qe3+ {[%clk 0:00:54.4]} 49. Kd5 {[%clk 0:00:15.7]} 49... Qd3+ {[%clk
0:00:54.3]} 50. Ke5 {[%clk 0:00:15.4]} 50... Qe3+ {[%clk 0:00:53.3]} 51. Kf6
{[%clk 0:00:15.5]} 51... Qg5+ {[%clk 0:00:53.4]} 52. Kxf7 {[%clk 0:00:14.7]}
52... Qg7+ {[%clk 0:00:53.8]} 53. Ke8 {[%clk 0:00:15.1]} 53... Qg8+ {[%clk
0:00:50.7]} 54. Qf8 {[%clk 0:00:15.4]} 54... Qxc4 {[%clk 0:00:47.3]} 55. d8=Q
{[%clk 0:00:15.1]} 1-0